[Event "23rd Hogeschool Zeeland Open 2019"]
[Site "Vlissingen"]
[Date "2019.08.06"]
[Round "5.4"]
[White "Ikonnikov, Vyacheslav"]
[Black "Nebolsina, Vera"]
[Result "1-0"]
[ECO "A27"]
[WhiteElo "2499"]
[BlackElo "2269"]
[Annotator "ChessBase"]
[PlyCount "43"]
[EventDate "2019.08.03"]
[EventType "swiss"]
[EventCountry "NED"]
[SourceTitle "playchess.com"]
[Source "ChessBase"]
[SourceQuality "1"]
[TimeControl "40/5400+30:1800+30"]

1. Nf3 {[%emt 0:00:00]} g6 {[%emt 0:00:00]} 2. c4 {[%emt 0:00:00]} Bg7 {[%emt 0:00:00]} 3. Nc3 {[%emt 0:00:19]} e5 {[%emt 0:06:41]} 4. d4 {[%emt 0:02:37]} exd4 {[%emt 0:00:20]} 5. Nxd4 {[%emt 0:01:31]} Nc6 {[%emt 0:02:12]} 6. Nxc6 {[%emt 0:00:57]} bxc6 {[%emt 0:00:07]} 7. g3 {[%emt 0:02:11]} Bxc3+ {[%emt 0:26:19]} 8. bxc3 {[%emt 0:00:11]} Qf6 {[%emt 0:00:12]} 9. Qd3 {[%emt 0:15:37]} Ba6 {[%emt 0:10:35]} 10. Bh3 {[%emt 0:02:40]} d6 {[%emt 0:06:14]} 11. Be3 {[%emt 0:01:54]} Qe7 {[%emt 0:02:56]} 12. Bd4 {[%emt 0:09:03]} f6 {[%emt 0:00:27]} 13. Qf3 {[%emt 0:00:46]} d5 {[%emt 0:03:01]} 14. cxd5 {[%emt 0:00:14]} cxd5 {[%emt 0:02:02]} 15. O-O {[%emt 0:00:08]} Rd8 {[%emt 0:04:23]} 16. Rfe1 {[%emt 0:02:00]} Bb7 {[%emt 0:03:10]} 17. Rab1 {[%emt 0:00:51]} Ba8 {[%emt 0:02:33]} 18. Rb5 {[%emt 0:01:03]} h5 {[%emt 0:03:08]} 19. Ra5 {[%emt 0:02:23]} h4 {[%emt 0:01:46]} 20. Rxa7 {[%emt 0:00:33]} Rh5 {[%emt 0:06:40]} 21. Bg4 {[%emt 0:03:52]} Rh7 {[%emt 0:00:07]} 22. Rxa8 {[%emt 0:01:16]} 1-0

[Event "23rd Hogeschool Zeeland Open 2019"]
[Site "Vlissingen"]
[Date "2019.08.06"]
[Round "5.5"]
[White "Van Baar, Esper"]
[Black "Harika, Dronavalli"]
[Result "0-1"]
[ECO "C07"]
[WhiteElo "2108"]
[BlackElo "2492"]
[Annotator "RC"]
[PlyCount "80"]
[EventDate "2019.08.03"]
[EventType "swiss"]
[EventCountry "NED"]
[SourceTitle "playchess.com"]
[Source "ChessBase"]
[SourceQuality "1"]
[TimeControl "40/5400+30:1800+30"]

1. e4 {[%emt 0:00:00]} e6 {[%emt 0:00:00]} 2. d4 {[%emt 0:00:00]} d5 {[%emt 0:00:00]} 3. Nd2 {[%emt 0:00:00]} c5 {[%emt 0:00:13]} 4. Ngf3 {[%emt 0:00:53]} cxd4 {[%emt 0:00:27]} 5. exd5 {[%emt 0:00:15]} Qxd5 {[%emt 0:00:13]} 6. Bc4 {[%emt 0:00:16]} Qd7 {[%emt 0:00:24]} 7. O-O {[%emt 0:02:20]} Nc6 {[%emt 0:00:21]} 8. Nb3 {[%emt 0:00:59]} Nf6 {[%emt 0:00:18]} 9. Nbxd4 {[%emt 0:00:23]} Nxd4 {[%emt 0:00:12]} 10. Nxd4 {[%emt 0:00:08]} a6 {[%emt 0:00:09]} 11. Re1 {[%emt 0:02:00]} Bc5 {[%emt 0:00:58]} 12. Be3 {[%emt 0:13:19]} O-O {[%emt 0:01:53]} 13. Nf3 {[%emt 0:03:09]} Qc7 {[%emt 0:07:29]} 14. Bb3 {[%emt 0:05:36]} b5 {[%emt 0:11:07]} 15. Bxc5 {[%emt 0:05:28]} Qxc5 {[%emt 0:00:15]} 16. Qd4 {[%emt 0:05:48]} Qxd4 {[%emt 0:02:00]} 17. Nxd4 {[%emt 0:00:05]} Bb7 {[%emt 0:02:31]} 18. c3 {[%emt 0:06:07]} Rfd8 {[%emt 0:03:12]} 19. Red1 {[%emt 0:04:02]} g6 {[%emt 0:04:55]} 20. a4 {[%emt 0:11:35]} bxa4 {[%emt 0:05:34]} 21. Rxa4 {[%emt 0:10:35]} Rab8 {[%emt 0:05:18]} 22. Rb4 {[%emt 0:06:32]} Ba8 {[%emt 0:18:34]} 23. Rxb8 {[%emt 0:01:02]} Rxb8 {[%emt 0:00:08]} 24. Bc4 {[%emt 0:03:21]} Rxb2 {[%emt 0:04:19]} 25. Bxa6 {[%emt 0:11:58]} Kg7 {[%emt 0:02:09]} 26. f3 {[%emt 0:00:53]} e5 {[%emt 0:08:35]} 27. Ne2 {[%emt 0:00:23]} e4 {[%emt 0:01:58]} 28. fxe4 {[%emt 0:00:34]} Nxe4 {[%emt 0:00:09]} 29. Rc1 {[%emt 0:04:38]} Rd2 {[%emt 0:05:07]} 30. Kf1 {[%emt 0:00:25]} Kh6 {[%emt 0:01:34]} 31. Ke1 {[%emt 0:01:26]} Rb2 {[%emt 0:01:06]} 32. Rd1 {[%emt 0:01:18]} Nc5 {[%emt 0:02:20]} 33. Bc4 {[%emt 0:00:04]} Bxg2 {[%emt 0:00:46]} 34. Bxf7 {[%emt 0:00:54]} Bf3 {[%emt 0:01:04]} 35. Bc4 {[%emt 0:00:24]} Ne4 {[%emt 0:00:32]} 36. Rc1 {[%emt 0:00:36]} Kg5 {[%emt 0:03:11]} 37. Nd4 {[%emt 0:00:30]} Kf4 {[%emt 0:01:33]} 38. Nxf3 {[%emt 0:00:29]} Kxf3 {[%emt 0:00:05]} 39. Bd5 {[%emt 0:00:19]} Rxh2 {[%emt 0:00:27]} 40. Bc4 {[%emt 0:00:44]} Rh1+ {[%emt 0:00:15]} 0-1

[Event "23rd Hogeschool Zeeland Open 2019"]
[Site "Vlissingen"]
[Date "2019.08.06"]
[Round "5.10"]
[White "De Jong, Migchiel"]
[Black "Reichardt, Gert"]
[Result "1-0"]
[ECO "E08"]
[WhiteElo "2345"]
[BlackElo "1987"]
[Annotator "NA"]
[PlyCount "57"]
[EventDate "2019.08.03"]
[EventType "swiss"]
[EventCountry "NED"]
[SourceTitle "playchess.com"]
[Source "ChessBase"]
[SourceQuality "1"]
[TimeControl "40/5400+30:1800+30"]

1. Nf3 {[%emt 0:00:00]} Nf6 {[%emt 0:00:04]} 2. c4 {[%emt 0:00:05]} e6 {[%emt 0:00:18]} 3. g3 {[%emt 0:00:29]} d5 {[%emt 0:01:22]} 4. Bg2 {[%emt 0:00:38]} c6 {[%emt 0:01:03]} 5. b3 {[%emt 0:05:25]} Nbd7 {[%emt 0:05:43]} 6. Bb2 {[%emt 0:02:53]} Be7 {[%emt 0:00:50]} 7. O-O {[%emt 0:00:19]} b6 {[%emt 0:01:23]} 8. Nc3 {[%emt 0:00:58]} Bb7 {[%emt 0:00:42]} 9. d4 {[%emt 0:01:11]} O-O {[%emt 0:03:38]} 10. Qc2 {[%emt 0:01:30]} Rc8 {[%emt 0:07:30]} 11. Rad1 {[%emt 0:01:28]} Ba6 {[%emt 0:03:14]} 12. Nd2 {[%emt 0:06:35]} Qc7 {[%emt 0:09:26]} 13. e4 {[%emt 0:01:45]} dxe4 {[%emt 0:02:25]} 14. Rfe1 {[%emt 0:08:14]} c5 {[%emt 0:02:54]} 15. d5 {[%emt 0:05:54]} exd5 {[%emt 0:00:52]} 16. cxd5 {[%emt 0:00:08]} Bd3 {[%emt 0:04:41]} 17. Qc1 {[%emt 0:00:07]} c4 {[%emt 0:02:39]} 18. Nxc4 {[%emt 0:04:16]} Bxc4 {[%emt 0:01:27]} 19. bxc4 {[%emt 0:00:14]} Bb4 {[%emt 0:01:12]} 20. Rd4 {[%emt 0:19:07]} Bc5 {[%emt 0:04:01]} 21. d6 {[%emt 0:00:55]} Qb8 {[%emt 0:02:09]} 22. Rdd1 {[%emt 0:02:07]} e3 {[%emt 0:03:47]} 23. fxe3 {[%emt 0:00:15]} Bxd6 {[%emt 0:00:12]} 24. Nb5 {[%emt 0:05:35]} Bc5 {[%emt 0:04:44]} 25. Qc3 {[%emt 0:04:09]} Rfe8 {[%emt 0:05:40]} 26. Rxd7 {[%emt 0:00:50]} Rxe3 {[%emt 0:01:46]} 27. Rxe3 {[%emt 0:00:10]} Re8 {[%emt 0:00:20]} 28. Rd4 {[%emt 0:03:18]} a6 {[%emt 0:02:08]} 29. Na3 {[%emt 0:02:16]} 1-0

[Event "23rd Hogeschool Zeeland Open 2019"]
[Site "Vlissingen"]
[Date "2019.08.06"]
[Round "5.11"]
[White "Mijnster, Niels"]
[Black "Elgersma, Onno"]
[Result "0-1"]
[ECO "D02"]
[WhiteElo "2089"]
[BlackElo "2232"]
[Annotator "RC"]
[PlyCount "96"]
[EventDate "2019.08.03"]
[EventType "swiss"]
[EventCountry "NED"]
[SourceTitle "playchess.com"]
[Source "ChessBase"]
[SourceQuality "1"]
[TimeControl "40/5400+30:1800+30"]

1. d4 {[%emt 0:00:00]} Nf6 {[%emt 0:00:00]} 2. Bf4 {[%emt 0:00:00]} d5 {[%emt 0:00:00]} 3. e3 {[%emt 0:00:01]} e6 {[%emt 0:00:00]} 4. Nd2 {[%emt 0:00:12]} c5 {[%emt 0:00:03]} 5. c3 {[%emt 0:00:04]} Nc6 {[%emt 0:00:04]} 6. Ngf3 {[%emt 0:00:17]} cxd4 {[%emt 0:00:50]} 7. exd4 {[%emt 0:00:32]} Nh5 {[%emt 0:00:04]} 8. Bg5 {[%emt 0:00:35]} f6 {[%emt 0:00:21]} 9. Bh4 {[%emt 0:00:20]} Bd6 {[%emt 0:06:34]} 10. Bb5 {[%emt 0:04:23]} O-O {[%emt 0:08:20]} 11. O-O {[%emt 0:11:54]} g6 {[%emt 0:05:27]} 12. Re1 {[%emt 0:03:06]} a6 {[%emt 0:02:58]} 13. Bf1 {[%emt 0:14:52]} b5 {[%emt 0:07:09]} 14. a4 {[%emt 0:09:25]} Rb8 {[%emt 0:00:26]} 15. b4 {[%emt 0:03:39]} g5 {[%emt 0:11:07]} 16. Bg3 {[%emt 0:08:01]} Nxg3 {[%emt 0:00:21]} 17. hxg3 {[%emt 0:00:28]} g4 {[%emt 0:02:52]} 18. Nh4 {[%emt 0:01:12]} f5 {[%emt 0:02:27]} 19. axb5 {[%emt 0:00:22]} axb5 {[%emt 0:00:06]} 20. Nb3 {[%emt 0:05:03]} Qg5 {[%emt 0:04:54]} 21. Qd2 {[%emt 0:06:58]} f4 {[%emt 0:02:08]} 22. Nc5 {[%emt 0:00:55]} Qf6 {[%emt 0:03:18]} 23. Qd3 {[%emt 0:03:57]} Rf7 {[%emt 0:25:52]} 24. Ra2 {[%emt 0:08:49]} Kg7 {[%emt 0:08:12]} 25. Rae2 {[%emt 0:03:49]} Nd8 {[%emt 0:00:31]} 26. Ra2 {[%emt 0:01:58]} h5 {[%emt 0:02:13]} 27. Kh1 {[%emt 0:02:00]} Kh6 {[%emt 0:02:14]} 28. Raa1 {[%emt 0:03:37]} Kg7 {[%emt 0:02:08]} 29. Be2 {[%emt 0:03:16]} Rb6 {[%emt 0:01:07]} 30. Rf1 {[%emt 0:02:04]} Bb8 {[%emt 0:00:51]} 31. Rae1 {[%emt 0:00:45]} Nc6 {[%emt 0:00:44]} 32. Bd1 {[%emt 0:00:41]} Ne7 {[%emt 0:01:12]} 33. Bc2 {[%emt 0:00:12]} Kh6 {[%emt 0:01:02]} 34. Ra1 {[%emt 0:00:53]} Nf5 {[%emt 0:00:43]} 35. Nxf5+ {[%emt 0:00:31]} exf5 {[%emt 0:00:01]} 36. Rfe1 {[%emt 0:02:03]} fxg3 {[%emt 0:00:16]} 37. fxg3 {[%emt 0:00:08]} f4 {[%emt 0:00:44]} 38. Re8 {[%emt 0:00:21]} fxg3 {[%emt 0:00:26]} 39. Kg1 {[%emt 0:00:38]} Qf2+ {[%emt 0:00:53]} 40. Kh1 {[%emt 0:00:02]} Qf6 {[%emt 0:00:21]} 41. Kg1 {[%emt 0:30:58]} Qf2+ {[%emt 0:06:38]} 42. Kh1 {[%emt 0:00:00]} Bf5 {[%emt 0:00:17]} 43. Re2 {[%emt 0:00:00]} Bxd3 {[%emt 0:00:27]} 44. Rxf2 {[%emt 0:00:00]} gxf2 {[%emt 0:02:23]} 45. Bxd3 {[%emt 0:00:00]} Re7 {[%emt 0:00:21]} 46. Rf1 {[%emt 0:00:00]} Bg3 {[%emt 0:01:02]} 47. Nb3 {[%emt 0:00:00]} Re1 {[%emt 0:00:11]} 48. Nc1 {[%emt 0:00:00]} Rbe6 {[%emt 0:00:20]} 0-1

[Event "23rd Hogeschool Zeeland Open 2019"]
[Site "Vlissingen"]
[Date "2019.08.06"]
[Round "5.12"]
[White "Van Liempt, Michael"]
[Black "Afek, Yochanan"]
[Result "1/2-1/2"]
[ECO "E57"]
[WhiteElo "2091"]
[BlackElo "2253"]
[Annotator "ChessBase"]
[PlyCount "53"]
[EventDate "2019.08.03"]
[EventType "swiss"]
[EventCountry "NED"]
[SourceTitle "playchess.com"]
[Source "ChessBase"]
[SourceQuality "1"]
[TimeControl "40/5400+30:1800+30"]

1. d4 {[%emt 0:00:00]} Nf6 {[%emt 0:00:13]} 2. Nf3 {[%emt 0:00:18]} d5 {[%emt 0:02:49]} 3. c4 {[%emt 0:00:49]} dxc4 {[%emt 0:00:06]} 4. e3 {[%emt 0:00:39]} c5 {[%emt 0:03:25]} 5. Bxc4 {[%emt 0:01:02]} cxd4 {[%emt 0:00:13]} 6. exd4 {[%emt 0:00:21]} e6 {[%emt 0:03:50]} 7. O-O {[%emt 0:00:57]} Be7 {[%emt 0:00:04]} 8. Nc3 {[%emt 0:00:28]} O-O {[%emt 0:00:10]} 9. Re1 {[%emt 0:01:43]} a6 {[%emt 0:01:44]} 10. a3 {[%emt 0:00:26]} b5 {[%emt 0:00:32]} 11. Ba2 {[%emt 0:00:23]} Bb7 {[%emt 0:00:10]} 12. Bg5 {[%emt 0:03:01]} Nc6 {[%emt 0:09:31]} 13. Rc1 {[%emt 0:09:17]} Rc8 {[%emt 0:04:38]} 14. Bb1 {[%emt 0:04:49]} b4 {[%emt 0:17:53]} 15. Qd3 {[%emt 0:06:10]} g6 {[%emt 0:02:52]} 16. Na4 {[%emt 0:05:24]} Nd5 {[%emt 0:07:16]} 17. Bh6 {[%emt 0:03:42]} Re8 {[%emt 0:00:08]} 18. Nc5 {[%emt 0:01:46]} Ba8 {[%emt 0:01:06]} 19. Nxa6 {[%emt 0:10:44]} bxa3 {[%emt 0:00:18]} 20. bxa3 {[%emt 0:01:03]} Qd6 {[%emt 0:07:56]} 21. Nc5 {[%emt 0:02:08]} Red8 {[%emt 0:03:55]} 22. Ba2 {[%emt 0:04:03]} Nf4 {[%emt 0:05:39]} 23. Qe3 {[%emt 0:08:46]} Nd5 {[%emt 0:04:32]} 24. Qd2 {[%emt 0:01:59]} Bf8 {[%emt 0:03:27]} 25. Bxf8 {[%emt 0:04:19]} Qxf8 {[%emt 0:00:33]} 26. Re4 {[%emt 0:05:51]} Nxd4 {[%emt 0:05:16]} 27. Rxd4 {[%emt 0:10:19]} 1/2-1/2

[Event "23rd Hogeschool Zeeland Open 2019"]
[Site "Vlissingen"]
[Date "2019.08.07"]
[Round "6.3"]
[White "Harika, Dronavalli"]
[Black "Werle, Jan"]
[Result "1/2-1/2"]
[ECO "E32"]
[WhiteElo "2492"]
[BlackElo "2555"]
[Annotator "ChessBase"]
[PlyCount "34"]
[EventDate "2019.08.03"]
[EventType "swiss"]
[EventCountry "NED"]
[SourceTitle "playchess.com"]
[Source "ChessBase"]
[SourceQuality "1"]
[TimeControl "40/5400+30:1800+30"]

1. d4 {[%emt 0:00:00]} Nf6 {[%emt 0:00:00]} 2. c4 {[%emt 0:00:00]} e6 {[%emt 0:00:00]} 3. Nc3 {[%emt 0:00:00]} Bb4 {[%emt 0:00:00]} 4. Qc2 {[%emt 0:00:00]} O-O {[%emt 0:00:00]} 5. e4 {[%emt 0:00:01]} d5 {[%emt 0:00:37]} 6. e5 {[%emt 0:00:27]} Ne4 {[%emt 0:00:14]} 7. Bd3 {[%emt 0:00:19]} c5 {[%emt 0:00:23]} 8. Nge2 {[%emt 0:01:19]} cxd4 {[%emt 0:02:28]} 9. Nxd4 {[%emt 0:00:32]} Nd7 {[%emt 0:00:17]} 10. Bf4 {[%emt 0:00:53]} Qh4 {[%emt 0:02:33]} 11. g3 {[%emt 0:00:32]} Qh5 {[%emt 0:00:25]} 12. O-O {[%emt 0:04:17]} g5 {[%emt 0:04:19]} 13. cxd5 {[%emt 0:03:08]} Bxc3 {[%emt 0:05:16]} 14. bxc3 {[%emt 0:00:30]} exd5 {[%emt 0:01:46]} 15. Bxe4 {[%emt 0:05:32]} dxe4 {[%emt 0:03:38]} 16. e6 {[%emt 0:00:57]} gxf4 {[%emt 0:01:58]} 17. exd7 {[%emt 0:01:14]} Bxd7 {[%emt 1:14:36]} 1/2-1/2

[Event "23rd Hogeschool Zeeland Open 2019"]
[Site "Vlissingen"]
[Date "2019.08.07"]
[Round "6.4"]
[White "Hausrath, Daniel"]
[Black "Romanishin, Oleg M"]
[Result "1/2-1/2"]
[ECO "D02"]
[WhiteElo "2468"]
[BlackElo "2443"]
[Annotator "ChessBase"]
[PlyCount "27"]
[EventDate "2019.08.03"]
[EventType "swiss"]
[EventCountry "NED"]
[SourceTitle "playchess.com"]
[Source "ChessBase"]
[SourceQuality "1"]
[TimeControl "40/5400+30:1800+30"]

1. Nf3 {[%emt 0:00:00]} Nf6 {[%emt 0:00:00]} 2. g3 {[%emt 0:00:40]} g6 {[%emt 0:02:11]} 3. Bg2 {[%emt 0:02:09]} Bg7 {[%emt 0:01:58]} 4. O-O {[%emt 0:00:18]} O-O {[%emt 0:05:31]} 5. d4 {[%emt 0:01:42]} d5 {[%emt 0:08:28]} 6. Be3 {[%emt 0:01:09]} c6 {[%emt 0:07:01]} 7. Qc1 {[%emt 0:01:15]} Bg4 {[%emt 0:12:46]} 8. c4 {[%emt 0:14:09]} dxc4 {[%emt 0:01:34]} 9. Qxc4 {[%emt 0:03:02]} Nd5 {[%emt 0:00:53]} 10. Nc3 {[%emt 0:03:19]} Nxe3 {[%emt 0:04:45]} 11. fxe3 {[%emt 0:00:07]} Nd7 {[%emt 0:00:13]} 12. Rad1 {[%emt 0:05:11]} Nb6 {[%emt 0:09:01]} 13. Qd3 {[%emt 0:02:14]} Bxf3 {[%emt 0:02:06]} 14. Bxf3 {[%emt 0:16:29]} 1/2-1/2

[Event "23rd Hogeschool Zeeland Open 2019"]
[Site "Vlissingen"]
[Date "2019.08.07"]
[Round "6.6"]
[White "Leenhouts, Koen"]
[Black "Wunnink, Michael"]
[Result "1/2-1/2"]
[ECO "E20"]
[WhiteElo "2426"]
[BlackElo "2214"]
[Annotator "ChessBase"]
[PlyCount "66"]
[EventDate "2019.08.03"]
[EventType "swiss"]
[EventCountry "NED"]
[SourceTitle "playchess.com"]
[Source "ChessBase"]
[SourceQuality "1"]
[TimeControl "40/5400+30:1800+30"]

1. d4 {[%emt 0:00:00]} Nf6 {[%emt 0:00:00]} 2. c4 {[%emt 0:00:00]} e6 {[%emt 0:00:00]} 3. Nc3 {[%emt 0:00:00]} Bb4 {[%emt 0:00:06]} 4. f3 {[%emt 0:00:00]} c5 {[%emt 0:11:32]} 5. d5 {[%emt 0:00:05]} b5 {[%emt 0:00:04]} 6. e4 {[%emt 0:00:45]} d6 {[%emt 0:05:10]} 7. Bg5 {[%emt 0:03:53]} O-O {[%emt 0:04:08]} 8. a4 {[%emt 0:15:04]} bxc4 {[%emt 0:10:01]} 9. Bxc4 {[%emt 0:00:13]} Ba6 {[%emt 0:01:01]} 10. Bxa6 {[%emt 0:01:03]} Nxa6 {[%emt 0:00:47]} 11. Nge2 {[%emt 0:08:19]} h6 {[%emt 0:17:21]} 12. Bxf6 {[%emt 0:13:00]} Qxf6 {[%emt 0:02:28]} 13. dxe6 {[%emt 0:04:53]} Qxe6 {[%emt 0:04:16]} 14. O-O {[%emt 0:00:22]} Bxc3 {[%emt 0:00:49]} 15. bxc3 {[%emt 0:08:04]} Nc7 {[%emt 0:06:30]} 16. Qd3 {[%emt 0:02:22]} Rab8 {[%emt 0:05:40]} 17. Rfd1 {[%emt 0:00:28]} Rfd8 {[%emt 0:01:57]} 18. Rab1 {[%emt 0:07:16]} Rxb1 {[%emt 0:03:17]} 19. Rxb1 {[%emt 0:00:05]} Qa2 {[%emt 0:04:00]} 20. f4 {[%emt 0:21:56]} Ne6 {[%emt 0:05:39]} 21. c4 {[%emt 0:02:32]} Qxa4 {[%emt 0:03:01]} 22. f5 {[%emt 0:00:23]} Nd4 {[%emt 0:01:11]} 23. Nxd4 {[%emt 0:00:32]} cxd4 {[%emt 0:00:04]} 24. Qxd4 {[%emt 0:04:52]} Qc2 {[%emt 0:01:29]} 25. Re1 {[%emt 0:01:18]} Rb8 {[%emt 0:02:15]} 26. Qxd6 {[%emt 0:00:42]} Rb1 {[%emt 0:01:12]} 27. Rxb1 {[%emt 0:00:08]} Qxb1+ {[%emt 0:00:05]} 28. Kf2 {[%emt 0:00:03]} Qxe4 {[%emt 0:00:31]} 29. c5 {[%emt 0:00:48]} Qxf5+ {[%emt 0:00:21]} 30. Ke3 {[%emt 0:00:38]} Qg5+ {[%emt 0:01:31]} 31. Kf3 {[%emt 0:01:09]} Qf5+ {[%emt 0:00:24]} 32. Ke3 {[%emt 0:00:15]} Qg5+ {[%emt 0:00:20]} 33. Kf3 {[%emt 0:03:27]} Qf5+ {[%emt 0:09:20]} 1/2-1/2

[Event "23rd Hogeschool Zeeland Open 2019"]
[Site "Vlissingen"]
[Date "2019.08.07"]
[Round "6.7"]
[White "Stillger, Bernhard"]
[Black "Zwirs, Nico"]
[Result "1/2-1/2"]
[ECO "E04"]
[WhiteElo "2199"]
[BlackElo "2380"]
[Annotator "ChessBase"]
[PlyCount "42"]
[EventDate "2019.08.03"]
[EventType "swiss"]
[EventCountry "NED"]
[SourceTitle "playchess.com"]
[Source "ChessBase"]
[SourceQuality "1"]
[TimeControl "40/5400+30:1800+30"]

1. d4 {[%emt 0:00:00]} d5 {[%emt 0:00:00]} 2. c4 {[%emt 0:00:00]} e6 {[%emt 0:00:00]} 3. Nf3 {[%emt 0:00:21]} Nf6 {[%emt 0:01:15]} 4. g3 {[%emt 0:00:41]} dxc4 {[%emt 0:00:08]} 5. Bg2 {[%emt 0:00:42]} c6 {[%emt 0:00:26]} 6. Ne5 {[%emt 0:07:49]} c5 {[%emt 0:02:27]} 7. Be3 {[%emt 0:10:44]} Nd5 {[%emt 0:10:29]} 8. dxc5 {[%emt 0:03:38]} Nxe3 {[%emt 0:18:10]} 9. Qxd8+ {[%emt 0:03:06]} Kxd8 {[%emt 0:00:30]} 10. fxe3 {[%emt 0:00:18]} Ke8 {[%emt 0:01:29]} 11. Nd2 {[%emt 0:06:30]} Bxc5 {[%emt 0:08:08]} 12. Ndxc4 {[%emt 0:03:43]} Nd7 {[%emt 0:06:24]} 13. Nd3 {[%emt 0:02:35]} Rb8 {[%emt 0:14:53]} 14. Nxc5 {[%emt 0:17:03]} Nxc5 {[%emt 0:00:17]} 15. Rc1 {[%emt 0:00:25]} Bd7 {[%emt 0:24:33]} 16. Nd6+ {[%emt 0:14:08]} Ke7 {[%emt 0:00:03]} 17. Nxf7 {[%emt 0:00:39]} Kxf7 {[%emt 0:00:43]} 18. Rxc5 {[%emt 0:26:38]} Rhc8 19. Rxc8 {[%emt 0:00:00]} Rxc8 {[%emt 0:00:09]} 20. Kd2 {[%emt 0:00:00]} Bc6 {[%emt 0:00:44]} 21. Bxc6 {[%emt 0:00:00]} Rxc6 {[%emt 0:09:42]} 1/2-1/2

[Event "23rd Hogeschool Zeeland Open 2019"]
[Site "Vlissingen"]
[Date "2019.08.07"]
[Round "6.8"]
[White "Duchene, Rene"]
[Black "De Jong, Migchiel"]
[Result "0-1"]
[ECO "D02"]
[WhiteElo "2157"]
[BlackElo "2345"]
[Annotator "ChessBase"]
[PlyCount "51"]
[EventDate "2019.08.03"]
[EventType "swiss"]
[EventCountry "NED"]
[SourceTitle "playchess.com"]
[Source "ChessBase"]
[SourceQuality "1"]
[TimeControl "40/5400+30:1800+30"]

1. d4 {[%emt 0:00:00]} e6 {[%emt 1:30:30]} 2. Bf4 {[%emt 0:00:11]} c5 {[%emt 0:00:00]} 3. e3 {[%emt 0:00:07]} Nf6 {[%emt 0:00:00]} 4. Nf3 {[%emt 0:00:42]} d5 {[%emt 0:00:00]} 5. c3 {[%emt 0:01:24]} Bd6 {[%emt 0:00:00]} 6. Bg3 {[%emt 0:00:11]} Qc7 {[%emt 0:00:00]} 7. Nbd2 {[%emt 0:02:08]} Nbd7 {[%emt 0:00:00]} 8. c4 {[%emt 0:14:50]} Bxg3 {[%emt 0:00:00]} 9. hxg3 {[%emt 0:00:10]} dxc4 {[%emt 0:00:00]} 10. Nxc4 {[%emt 0:04:03]} O-O {[%emt 0:00:00]} 11. Rc1 {[%emt 0:02:40]} b5 {[%emt 0:00:00]} 12. Na3 {[%emt 0:13:47]} Qa5+ {[%emt 0:00:00]} 13. Qd2 {[%emt 0:00:50]} Qxd2+ {[%emt 0:00:00]} 14. Kxd2 {[%emt 0:02:57]} a6 {[%emt 0:00:00]} 15. Bd3 {[%emt 0:01:33]} c4 {[%emt 0:00:00]} 16. Bb1 {[%emt 0:00:17]} Bb7 {[%emt 0:00:00]} 17. Rh4 {[%emt 0:02:21]} Rfd8 {[%emt 0:00:00]} 18. Ke2 {[%emt 0:10:08]} h6 {[%emt 0:00:00]} 19. Rch1 {[%emt 0:02:21]} Rac8 {[%emt 0:00:00]} 20. g4 {[%emt 0:01:34]} Kf8 {[%emt 0:00:00]} 21. Ne1 {[%emt 0:09:33]} b4 {[%emt 0:00:00]} 22. Nac2 {[%emt 0:00:20]} a5 {[%emt 0:00:00]} 23. Na1 {[%emt 0:01:27]} Nb6 {[%emt 0:00:00]} 24. f4 {[%emt 0:00:49]} c3 {[%emt 0:00:00]} 25. bxc3 {[%emt 0:00:15]} Nbd5 {[%emt 0:00:00]} 26. Kd3 {[%emt 0:28:22]} 0-1

[Event "23rd Hogeschool Zeeland Open 2019"]
[Site "Vlissingen"]
[Date "2019.08.07"]
[Round "6.12"]
[White "Afek, Yochanan"]
[Black "Merbis, Max"]
[Result "1/2-1/2"]
[ECO "C47"]
[WhiteElo "2253"]
[BlackElo "2103"]
[Annotator "ChessBase"]
[PlyCount "75"]
[EventDate "2019.08.03"]
[EventType "swiss"]
[EventCountry "NED"]
[SourceTitle "playchess.com"]
[Source "ChessBase"]
[SourceQuality "1"]
[TimeControl "40/5400+30:1800+30"]

1. e4 {[%emt 0:00:22]} e5 {[%emt 0:00:02]} 2. Nf3 {[%emt 0:00:10]} Nc6 {[%emt 0:00:10]} 3. d4 {[%emt 0:00:51]} exd4 {[%emt 0:00:19]} 4. Nxd4 {[%emt 0:00:04]} Nf6 {[%emt 0:00:20]} 5. Nc3 {[%emt 0:00:06]} Bb4 {[%emt 0:00:29]} 6. Nxc6 {[%emt 0:00:07]} bxc6 {[%emt 0:00:07]} 7. Bd3 {[%emt 0:00:03]} d5 {[%emt 0:00:53]} 8. exd5 {[%emt 0:00:07]} cxd5 {[%emt 0:00:07]} 9. O-O {[%emt 0:00:03]} O-O {[%emt 0:00:06]} 10. Bg5 {[%emt 0:00:05]} c6 {[%emt 0:00:04]} 11. Ne2 {[%emt 0:00:06]} Bd6 {[%emt 0:02:17]} 12. Nd4 {[%emt 0:00:42]} Bd7 {[%emt 0:01:41]} 13. Qf3 {[%emt 0:04:51]} Be5 {[%emt 0:05:02]} 14. Nf5 {[%emt 0:02:21]} Re8 {[%emt 0:04:22]} 15. c3 {[%emt 0:11:19]} Qc7 {[%emt 0:35:45]} 16. Nh6+ {[%emt 0:38:06]} Kf8 {[%emt 0:00:23]} 17. Bxf6 {[%emt 0:01:42]} Bxf6 {[%emt 0:00:55]} 18. Bxh7 {[%emt 0:00:15]} Re4 {[%emt 0:08:25]} 19. Bxe4 {[%emt 0:12:12]} dxe4 {[%emt 0:00:06]} 20. Qxe4 {[%emt 0:00:11]} gxh6 {[%emt 0:00:13]} 21. Rfe1 {[%emt 0:00:07]} Re8 {[%emt 0:03:38]} 22. Qd3 {[%emt 0:01:21]} Rxe1+ {[%emt 0:00:58]} 23. Rxe1 {[%emt 0:00:01]} Be6 {[%emt 0:01:11]} 24. h3 {[%emt 0:08:29]} c5 {[%emt 0:04:30]} 25. Qf3 {[%emt 0:05:00]} Kg7 {[%emt 0:01:37]} 26. Qa8 {[%emt 0:01:05]} Bg5 {[%emt 0:07:11]} 27. Rd1 {[%emt 0:05:36]} c4 {[%emt 0:03:56]} 28. Re1 {[%emt 0:01:27]} Qb6 {[%emt 0:01:36]} 29. Re2 {[%emt 0:00:29]} Qd6 {[%emt 0:02:10]} 30. Qe4 {[%emt 0:00:24]} Qd3 {[%emt 0:00:39]} 31. Qe5+ {[%emt 0:00:57]} Bf6 {[%emt 0:04:16]} 32. Qg3+ {[%emt 0:00:17]} Kh7 {[%emt 0:03:07]} 33. Qe3 {[%emt 0:02:16]} Bg5 {[%emt 0:01:24]} 34. Qe4+ {[%emt 0:00:49]} Bf5 {[%emt 0:01:22]} 35. Qe8 {[%emt 0:01:20]} Be6 {[%emt 0:00:28]} 36. Rxe6 {[%emt 0:01:32]} fxe6 {[%emt 0:00:01]} 37. Qf7+ {[%emt 0:00:07]} Kh8 {[%emt 0:00:03]} 38. Qf8+ {[%emt 0:00:05]} 1/2-1/2